bitfinex-derivatives/quotes_ETHF0:USTF0_20250612
["timestamp","ask_amount","ask_price","bid_price","bid_amount"]
[1749732397551,0.72996,2739.5,2739.4,30.116]
[1749732397849,0.72998,2739.3,2739.2,26.7928]
[1749732398048,0.72998,2739.3,2739.2,3.2078]
[1749732398556,1.92288,2739.3,2739.2,3.2078]
[1749732398948,0.73006,2739.0,2738.9,3.2078]
[1749732399653,0.73014,2738.7,2738.6,6.53]
[1749732399852,0.73014,2738.7,2738.6,7.26017]
[1749732400050,0.73014,2738.7,2738.6,30.84417]
[1749732400656,0.73017,2738.6,2738.5,3.93798]
[1749732400849,0.73017,2738.6,2738.5,3.2078]
[1749732401050,0.73017,2738.6,2738.5,3.938]
[1749732401353,0.73017,2738.6,2738.5,3.2078]
[1749732401553,0.73017,2738.6,2738.5,3.938]
[1749732401753,0.73017,2738.6,2738.5,3.2078]
[1749732403854,0.73017,2738.6,2738.5,3.938]
[1749732404254,0.73017,2738.6,2738.5,3.2078]
[1749732405553,0.73017,2738.6,2738.5,3.938]
[1749732406656,0.73017,2738.6,2738.5,3.2078]
[1749732406855,0.73017,2738.6,2738.5,3.938]
[1749732407453,0.73017,2738.6,2738.5,3.2078]
[1749732408161,0.73017,2738.6,2738.5,3.938]
[1749732408360,0.73017,2738.6,2738.5,3.2078]
[1749732414762,0.73017,2738.6,2738.5,4.4656]
[1749732414962,0.73017,2738.6,2738.5,5.1958]
[1749732415158,0.73017,2738.6,2738.5,4.4656]
[1749732415563,0.73017,2738.6,2738.5,3.2078]
[1749732415863,0.73017,2738.6,2738.5,26.7828]
[1749732416063,0.73017,2738.6,2738.5,27.513]
[1749732416265,0.73017,2738.6,2738.5,28.0406]
[1749732416960,0.73017,2738.6,2738.5,28.7708]
[1749732417162,0.73017,2738.6,2738.5,28.0406]
[1749732417560,0.73017,2738.6,2738.5,28.7708]
[1749732418065,0.73017,2738.6,2738.5,28.0406]
[1749732418365,0.73016,2738.7,2738.5,28.0406]
[1749732418565,0.73016,2738.7,2738.6,1.47504]
[1749732418761,0.73016,2738.7,2738.6,0.7449]
[1749732418967,0.73016,2738.7,2738.6,24.3169]
[1749732419764,0.73016,2738.7,2738.6,0.7449]
[1749732420268,0.73025,2738.3,2738.2,8.21732047]
[1749732420566,0.73028,2738.2,2738.1,5.00952047]
[1749732420772,0.73036,2737.9,2737.8,8.97932047]
[1749732421270,0.73036,2737.9,2737.8,3.9698]
[1749732421464,0.73036,2737.9,2737.8,3.2078]
[1749732421769,0.73044,2737.6,2737.5,3.2078]
[1749732423267,0.7223,2738.0,2737.6,0.73042]
[1749732423467,0.73038,2737.8,2737.7,23.567]
[1749732423870,0.73038,2737.8,2737.7,24.29741]
[1749732424064,0.73038,2737.8,2737.7,23.567]
[1749732424561,0.73038,2737.8,2737.5,3.927]
[1749732424562,1.8259,2737.9,2737.5,3.2078]
[1749732424764,1.82597,2737.8,2737.2,26.7758]
[1749732424965,0.73052,2737.3,2737.2,26.7758]
[1749732425966,0.73052,2737.3,2737.2,27.50634]
[1749732426768,0.7239,2737.6,2737.3,0.73051]
[1749732426769,0.73051,2737.4,2737.3,0.73051]
[1749732426969,0.7239,2737.6,2737.2,26.7758]
[1749732426970,0.73052,2737.3,2737.2,26.7758]
[1749732428671,0.73052,2737.3,2737.2,27.50634]
[1749732428866,1.2013,2737.8,2737.2,26.7758]
[1749732428867,1.82601,2737.8,2737.2,26.7758]
[1749732429065,0.73041,2737.7,2737.6,3.93821]
[1749732429270,0.73041,2737.7,2737.6,34.02121]
[1749732429764,0.73039,2737.8,2737.7,0.73038]
[1749732429969,3.00496,2738.3,2737.9,0.73035]
[1749732429970,0.73035,2738.0,2737.9,0.73035]
[1749732430170,0.73035,2738.0,2737.9,26.7758]
[1749732430574,0.73035,2738.0,2737.9,28.70886]
[1749732431076,0.73035,2738.0,2737.9,27.9785]
[1749732431470,0.73035,2738.0,2737.9,28.70886]
[1749732431972,0.73035,2738.0,2737.9,27.9785]
[1749732432967,0.73035,2738.0,2737.9,3.2078]
[1749732433268,0.73041,2737.7,2737.6,9.7238]
[1749732433474,0.73041,2737.7,2737.6,26.7718]
[1749732434072,0.7304,2737.8,2737.6,26.7718]
[1749732434375,0.73041,2737.7,2737.6,26.7718]
[1749732434573,0.73041,2737.7,2737.6,27.50224]
[1749732435377,0.73041,2737.7,2737.6,26.7718]
[1749732436079,0.73041,2737.7,2737.6,27.50224]
[1749732436972,0.7304,2737.8,2737.7,0.73038]
[1749732437168,0.7304,2737.8,2737.7,24.7934]
[1749732437672,0.7304,2737.8,2737.7,23.561]
[1749732437874,0.73038,2737.8,2737.7,23.561]
[1749732438273,1.8259,2737.9,2737.7,23.559]
[1749732438476,0.73038,2737.8,2737.7,23.559]
[1749732439280,0.73049,2737.4,2737.3,10.4419]
[1749732439477,0.73049,2737.4,2737.3,34.73042]
[1749732439679,0.73044,2737.7,2737.6,0.73042]
[1749732439880,0.73044,2737.7,2737.6,24.28742]
[1749732440782,0.7304,2737.8,2737.7,0.73038]
[1749732441083,0.682,2738.0,2737.7,0.73038]
[1749732441084,0.73034,2738.0,2737.9,0.73036]
[1749732441277,0.4382,2738.1,2738.0,0.73033]
[1749732441483,0.73027,2738.3,2738.2,0.73026]
[1749732441682,0.73571156,2738.4,2738.3,0.73025]
[1749732442276,0.73025,2738.3,2738.2,68.29306]
[1749732442879,0.73571156,2738.4,2738.3,0.73025]
[1749732443073,0.00547156,2738.4,2738.3,0.73025]
[1749732443483,0.73025,2738.3,2738.2,68.29306]
[1749732444379,0.73571156,2738.4,2738.3,0.73025]
[1749732444784,0.73571156,2738.4,2738.3,2.02255]
[1749732445379,0.00547156,2738.4,2738.3,2.02255]
[1749732446086,0.00547156,2738.4,2738.3,2.69325]
[1749732446381,0.00547156,2738.4,2738.3,7.69325]
[1749732447479,1.82477,2739.6,2739.2,0.73]
[1749732447679,0.73001,2739.3,2739.2,0.73]
[1749732447880,0.72996,2739.4,2739.3,0.72996]
[1749732448086,0.72996,2739.4,2739.3,24.27596]
[1749732448281,0.6814,2739.6,2739.4,0.72994]
[1749732448282,0.72994,2739.5,2739.4,0.72994]
[1749732448481,0.72994,2739.5,2739.4,24.27594]
[1749732448786,0.6814,2739.6,2739.4,24.27594]
[1749732448787,0.6814,2739.6,2739.4,23.546]
[1749732449089,0.72992,2739.6,2739.5,6.516]
[1749732449387,0.72992,2739.6,2739.5,47.316]
[1749732449687,0.72992,2739.6,2739.5,70.86]
[1749732449885,0.73535156,2739.7,2739.5,70.86]
[1749732450087,0.00547156,2739.7,2739.6,0.7299]
[1749732450283,0.73535156,2739.7,2739.6,0.7299]
[1749732450683,0.7299,2739.6,2739.5,71.58992]
[1749732450891,0.7299,2739.6,2739.5,41.52993]
[1749732451190,0.7299,2739.6,2739.5,40.8]
[1749732451480,0.7299,2739.6,2739.3,3.2078]
[1749732451481,0.72996,2739.4,2739.3,3.2078]
[1749732451686,0.72996,2739.4,2739.3,26.7468]
[1749732453184,0.72994,2739.5,2739.3,26.7468]
[1749732453389,0.72994,2739.5,2739.4,0.72995]
[1749732453686,0.72996,2739.4,2739.3,3.2078]
[1749732453882,0.72996,2739.4,2739.3,27.47278]
[1749732454082,0.72996,2739.4,2739.3,3.2078]
[1749732454484,0.73011,2738.9,2738.8,3.2078]
[1749732454682,0.73011,2738.9,2738.8,33.2368]
[1749732454891,0.73011,2738.9,2738.8,50.5028]
[1749732455092,0.73011,2738.9,2738.8,74.0368]
[1749732455688,0.73011,2738.9,2738.8,74.76692]
[1749732456187,2.51461,2739.1,2738.9,0.73008]
[1749732456188,0.73008,2739.0,2738.9,0.73008]
[1749732456383,1.41956,2739.1,2739.0,0.73006]
[1749732456585,1.41956,2739.1,2739.0,23.534]
[1749732456787,1.41956,2739.1,2739.0,24.26406]
[1749732458088,0.73004,2739.1,2739.0,23.534]
[1749732458794,0.73,2739.3,2739.2,0.73]
[1749732458990,0.6891,2739.4,2739.2,0.73]
[1749732458991,0.6891,2739.4,2739.2,30.025]
[1749732459196,0.6891,2739.4,2739.3,0.72998]
[1749732459394,1.41906,2739.4,2739.3,0.72998]
[1749732460797,0.6891,2739.4,2739.3,0.72998]
[1749732460994,0.00547156,2739.7,2739.2,33.11622]
[1749732461197,0.72992,2739.6,2739.5,3.93771]
[1749732461398,0.73536156,2739.7,2739.6,0.7299]
[1749732462298,0.73535156,2739.7,2739.6,7.2249]
[1749732462496,0.00547156,2739.7,2739.6,7.2249]
[1749732463093,0.73535156,2739.7,2739.6,7.2249]
[1749732464094,0.00547156,2739.7,2739.6,7.2249]
[1749732464296,0.73535156,2739.7,2739.6,7.2249]
[1749732464489,0.00547156,2739.7,2739.6,7.2249]
[1749732464690,0.73535156,2739.7,2739.6,7.2249]
[1749732465498,0.00547156,2739.7,2739.6,7.2249]
[1749732465702,0.00547156,2739.7,2739.6,8.5054]
[1749732466503,0.73535156,2739.7,2739.6,6.495]
[1749732466698,0.7299,2739.6,2739.5,3.2078]
[1749732467003,0.7299,2739.6,2739.5,33.2188]
[1749732467705,0.7299,2739.6,2739.5,33.94871]
[1749732468003,0.7299,2739.6,2739.5,33.2188]
[1749732468407,0.7299,2739.6,2739.5,33.94873]
[1749732469006,0.73537156,2739.7,2739.6,0.7299]
[1749732469600,0.7299,2739.6,2739.5,33.94871]
[1749732470197,0.7299,2739.6,2739.5,33.2188]
[1749732470508,0.7299,2739.6,2739.5,33.2158]
[1749732471210,0.7299,2739.6,2739.5,33.94573]
[1749732472011,0.7299,2739.6,2739.5,33.2158]
[1749732473611,0.7299,2739.6,2739.5,33.94573]
[1749732474403,0.7299,2739.6,2739.5,33.2158]
[1749732474808,0.7299,2739.6,2739.5,33.94573]
[1749732475106,0.7299,2739.6,2739.5,33.2158]
[1749732475612,0.7299,2739.6,2739.5,3.2078]
[1749732475905,0.7299,2739.6,2739.5,26.7148]
[1749732477505,0.7299,2739.6,2739.5,3.2078]
[1749732477708,0.7299,2739.6,2739.5,26.7128]
[1749732477905,0.7299,2739.6,2739.5,26.7118]
[1749732478109,1.9643,2739.6,2739.1,5.00952047]
[1749732478306,1.9643,2739.6,2739.1,14.71132047]
[1749732478307,0.73001,2739.2,2739.1,14.71132047]
[1749732478610,0.73001,2739.2,2739.1,33.2058]
[1749732479211,0.73001,2739.2,2739.1,33.2048]
[1749732479411,1.96441,2739.2,2739.1,33.2048]
[1749732480412,1.96441,2739.2,2739.1,33.2028]
[1749732481007,1.96441,2739.2,2739.1,6.494]
[1749732481209,1.96441,2739.2,2739.1,29.995]
[1749732481611,0.73012,2738.9,2738.8,6.494]
[1749732481813,0.73012,2738.9,2738.8,30.72511]
[1749732482015,0.73012,2738.9,2738.8,29.995]
[1749732482513,0.73012,2738.9,2738.8,29.994]
[1749732482911,0.73008,2739.0,2738.9,0.73007]
[1749732483813,0.73009,2738.9,2738.8,30.7241]
[1749732486115,0.438,2739.6,2738.8,30.7241]
[1749732486116,0.438,2739.6,2739.0,1.82516]
[1749732486418,1.83023156,2739.7,2739.0,1.82516]
[1749732486419,0.72994,2739.5,2739.4,0.72994]
[1749732486617,0.72992,2739.6,2739.5,0.72991]
[1749732486809,0.72993,2739.5,2739.4,30.70093]
[1749732487010,0.72992,2739.6,2739.5,0.72991]
[1749732487503,1.33127156,2739.7,2739.6,0.7299]
[1749732487706,0.00547156,2739.7,2739.6,24.2249]
[1749732488112,0.73535156,2739.7,2739.6,24.2249]
[1749732488307,0.73535156,2739.7,2739.6,23.495]
[1749732488510,0.73535156,2739.7,2739.6,24.2249]
[1749732488811,0.73535156,2739.7,2739.6,23.495]
[1749732489511,0.73535156,2739.7,2739.6,24.2249]
[1749732489706,0.73535156,2739.7,2739.6,23.495]
[1749732490514,0.00547156,2739.7,2739.6,27.4327]
[1749732490907,0.73535156,2739.7,2739.6,27.4327]
[1749732491108,0.00547156,2739.7,2739.6,27.4327]
[1749732492420,0.73535156,2739.7,2739.6,27.4327]
[1749732493020,0.00547156,2739.7,2739.6,27.4327]
[1749732495022,0.00547156,2739.7,2739.6,32.4327]
[1749732495813,0.4379,2740.3,2740.2,0.72974]
[1749732496022,0.72962,2740.7,2740.6,0.72964]
[1749732496218,3.9374,2740.8,2740.7,0.72961]
[1749732496417,0.7296,2740.8,2740.7,0.72961]
[1749732496818,1.34927,2740.9,2740.8,0.72958]
[1749732497623,0.6197,2740.9,2740.8,27.41738]
[1749732498620,1.34926,2740.9,2740.8,27.41738]
[1749732498819,0.6197,2740.9,2740.8,27.41738]
[1749732500218,0.00547156,2741.0,2740.9,0.72956]
[1749732500418,0.00547156,2741.0,2740.9,1.38146]
[1749732500624,0.00547156,2741.0,2740.9,2.56486]
[1749732502222,0.00547156,2741.0,2740.9,48.36486]
[1749732502817,0.00547156,2741.0,2740.9,43.36486]
[1749732503025,0.73500156,2741.0,2740.9,71.46856]
[1749732503226,0.73500156,2741.0,2740.9,29.939]
[1749732504329,1.96760156,2741.0,2740.9,6.472]
[1749732504529,1.96760156,2741.0,2740.9,29.937]
[1749732505431,0.00547156,2741.0,2740.9,30.66656]
[1749732505633,0.00547156,2741.0,2740.9,32.53536]
[1749732506830,0.00547156,2741.0,2740.9,73.33536]
[1749732511832,0.6293,2741.8,2740.9,73.33536]
[1749732511833,3.2078,2743.3,2741.1,3.645]
[1749732512127,0.72918,2742.3,2742.2,3.2078]
[1749732512329,0.72918,2742.3,2742.2,26.6588]
[1749732512527,5.72918,2742.3,2742.2,3.2078]
[1749732513333,0.72918,2742.3,2742.2,3.2078]
[1749732516843,0.73461156,2742.5,2742.4,0.72916]
[1749732517042,1.36501156,2742.5,2742.4,24.17216]
[1749732517944,0.72903,2742.9,2742.5,1.82283]
[1749732518241,1.35943,2742.9,2742.8,0.72905]
[1749732518443,1.35943,2742.9,2742.8,24.17005]
[1749732518939,1.35943,2742.9,2742.4,3.2078]
[1749732518940,0.72913,2742.5,2742.4,3.2078]
[1749732519836,1.99933,2742.5,2742.4,3.2078]
[1749732520539,2.72763,2742.5,2742.4,3.2078]
[1749732520735,1.45743,2742.5,2742.4,3.2078]
[1749732522043,0.72916,2742.4,2742.3,23.441]
[1749732522245,1.35016,2742.4,2742.3,23.441]
[1749732522634,2.62136,2742.4,2742.3,23.441]
[1749732522943,1.35016,2742.4,2742.3,0.72918]
[1749732523146,0.7292,2742.3,2742.2,0.72919]
[1749732523333,0.621,2742.4,2742.2,30.60919]
[1749732523540,0.72918,2742.3,2742.2,29.88]
[1749732523942,0.72918,2742.3,2742.2,30.60921]
[1749732524143,0.621,2742.4,2742.2,29.88]
[1749732524348,1.35017,2742.4,2742.2,30.60919]
[1749732524644,0.72918,2742.3,2742.2,29.88]
[1749732525043,0.72918,2742.3,2742.1,3.2078]
[1749732525239,0.72924,2742.1,2742.0,6.45247156]
[1749732525642,0.72924,2742.1,2742.0,23.43647156]
[1749732525844,1.38044,2742.1,2742.0,23.43647156]
[1749732526437,1.38044,2742.1,2742.0,0.00547156]
[1749732526640,1.38044,2742.1,2742.0,23.43447156]
[1749732526840,1.38044,2742.1,2742.0,0.00547156]
[1749732527040,0.72932,2741.8,2741.7,6.447]
[1749732527244,0.72934,2741.7,2741.6,23.428]
[1749732529850,0.7294,2741.5,2741.4,26.64127156]
[1749732530157,0.7294,2741.5,2741.4,0.00547156]
[1749732531246,0.7294,2741.5,2741.4,0.73489156]
[1749732531647,0.7294,2741.5,2741.4,0.00547156]
[1749732536460,5.7294,2741.5,2741.4,0.00547156]
[1749732536659,0.7295,2741.1,2741.0,3.2078]
[1749732537253,0.72961,2740.7,2740.6,9.6558]
[1749732537558,0.72961,2740.7,2740.6,33.0798]
[1749732538060,0.72961,2740.7,2740.6,9.6558]
[1749732538250,0.72961,2740.7,2740.6,33.0808]
[1749732538656,0.72961,2740.7,2740.6,33.81044]
[1749732539249,0.72961,2740.7,2740.6,33.0808]
[1749732539856,0.72961,2740.7,2740.6,9.6558]
[1749732540058,0.72961,2740.7,2740.6,33.0808]
[1749732540860,0.72966,2740.5,2740.4,0.00547156]
[1749732542158,1.45906,2740.5,2740.4,0.00547156]
[1749732544563,0.72985,2739.8,2739.7,7.0507]
[1749732544755,0.72985,2739.8,2739.7,30.4737]
[1749732545962,0.72985,2739.8,2739.7,31.7366]
[1749732546555,0.72985,2739.8,2739.7,23.422]
[1749732547660,0.7299,2739.6,2739.5,3.21327156]
[1749732547854,0.7299,2739.6,2739.5,0.00547156]
[1749732550166,0.7299,2739.6,2739.5,1.56e-06]
[1749732550560,0.7299,2739.6,2739.5,1.22940156]
[1749732551166,0.7299,2739.6,2739.5,1.95933156]
[1749732551570,0.7299,2739.6,2739.5,1.22940156]
[1749732551869,0.7299,2739.6,2739.5,1.95933156]
[1749732552262,0.7299,2739.6,2739.5,3.93773156]
[1749732552461,0.7299,2739.6,2739.5,3.20780156]
[1749732554667,3.9377,2739.6,2739.5,1.56e-06]
[1749732555372,4.5843,2739.6,2739.5,1.56e-06]
[1749732555670,9.5843,2739.6,2739.5,1.56e-06]
[1749732555870,4.5843,2739.6,2739.5,1.56e-06]
[1749732556873,1.3765,2739.6,2739.5,1.56e-06]
[1749732558069,0.7299,2739.6,2739.5,1.56e-06]
[1749732558573,0.7299,2739.6,2739.5,1.18910156]
[1749732559879,0.7299,2739.6,2739.5,1.56e-06]
[1749732560771,1.9049,2739.6,2739.5,1.56e-06]
[1749732561879,6.9049,2739.6,2739.5,1.56e-06]
[1749732562076,5.7299,2739.6,2739.5,1.56e-06]
[1749732562582,6.9049,2739.6,2739.5,1.56e-06]
[1749732562975,0.7299,2739.6,2739.5,1.56e-06]
[1749732564976,1.4598,2739.6,2739.5,1.56e-06]
[1749732566579,1.4598,2739.6,2739.5,1.25170156]
[1749732569282,1.4598,2739.6,2739.5,1.56e-06]
[1749732570878,2.6671,2739.6,2739.5,1.56e-06]
[1749732571079,1.4598,2739.6,2739.5,1.56e-06]
[1749732574982,1.4598,2739.6,2739.5,1.24230156]
[1749732575189,1.4598,2739.6,2739.5,1.97223156]
[1749732575389,0.7299,2739.6,2739.5,5.18003156]
[1749732575690,1.4598,2739.6,2739.5,5.18003156]
[1749732575878,0.7299,2739.6,2739.5,10.18003156]
[1749732577186,0.71895532,2739.6,2739.5,10.18003156]
[1749732577387,0.72982,2739.9,2739.8,0.72985]
[1749732577583,0.72982,2739.9,2739.8,3.93765]
[1749732578089,0.72982,2739.9,2739.8,5.14945]
[1749732578291,0.73529156,2740.0,2739.9,0.72982]
[1749732578493,0.73529156,2740.0,2739.9,1.2469]
[1749732578892,0.73529156,2740.0,2739.9,1.97672]
[1749732579296,0.73529156,2740.0,2739.9,1.2469]
[1749732580792,0.73529156,2740.0,2739.9,1.97672]
[1749732582082,0.73529156,2740.0,2739.9,1.2469]
[1749732582895,0.73529156,2740.0,2739.9,1.97672]
[1749732583286,0.73529156,2740.0,2739.9,1.2469]
[1749732583993,0.73529156,2740.0,2739.9,1.97672]
[1749732586489,0.73529156,2740.0,2739.9,1.2469]
[1749732586882,0.73529156,2740.0,2739.9,1.97672]
[1749732587289,0.00547156,2740.0,2739.9,1.97672]
[1749732587694,0.00547156,2740.0,2739.9,30.36872]
[1749732588594,0.00547156,2740.0,2739.9,25.36872]
[1749732589489,0.73527156,2740.0,2739.9,1.2469]
[1749732590196,0.73527156,2740.0,2739.9,1.97672]
[1749732590391,0.00547156,2740.0,2739.9,1.97672]
[1749732590599,0.73527156,2740.0,2739.9,1.97672]
[1749732592297,0.00547156,2740.0,2739.9,1.97672]
[1749732593897,0.00547156,2740.0,2739.9,31.78172]
[1749732594786,0.73527156,2740.0,2739.9,31.78172]
[1749732595095,0.00547156,2740.0,2739.9,31.78172]
[1749732598593,0.73527156,2740.0,2739.9,31.78172]
[1749732599391,0.00547156,2740.0,2739.9,31.78172]
[1749732600396,0.73527156,2740.0,2739.9,31.0519]
[1749732600596,0.73527156,2740.0,2739.9,2.36811766]
[1749732600803,0.00547156,2740.0,2739.9,32.16211766]
[1749732601893,0.73527156,2740.0,2739.9,32.16211766]
[1749732602391,0.73527156,2740.0,2739.9,1.63829766]
[1749732602597,0.73527156,2740.0,2739.9,0.39139766]
[1749732603392,2.03257156,2740.0,2739.9,0.39139766]
[1749732608002,2.47047156,2740.0,2739.9,0.39139766]
[1749732609804,0.72988,2739.7,2739.6,9.6268]
[1749732610005,0.72988,2739.7,2739.6,32.9918]
[1749732610604,0.7299,2739.6,2739.5,1.56e-06]
[1749732610907,1.3799,2739.6,2739.5,1.56e-06]
[1749732611202,1.3799,2739.6,2739.5,23.36300156]
[1749732611400,4.5877,2739.6,2739.5,1.56e-06]
[1749732612399,9.5877,2739.6,2739.5,1.56e-06]
[1749732613699,0.73006,2739.0,2738.9,9.6068]
[1749732614105,0.73006,2739.0,2738.9,3.2078]
[1749732615110,0.73014,2738.7,2738.6,6.4]
[1749732615908,0.73017,2738.6,2738.5,3.2078]
[1749732616112,0.73028,2738.3,2738.2,27.29904]
[1749732616407,0.73024,2738.4,2738.3,0.73022]
[1749732616604,0.00547156,2738.5,2738.4,0.73022]
[1749732616807,0.73567156,2738.5,2738.4,0.73022]
[1749732617002,0.00547156,2738.5,2738.4,0.73022]
[1749732618305,0.73567156,2738.5,2738.4,0.73022]
[1749732618706,0.73025,2738.3,2738.2,3.2078]
[1749732618902,0.73025,2738.3,2738.2,32.9708]
[1749732619106,0.73025,2738.3,2738.2,26.5678]
[1749732619506,0.73025,2738.3,2738.2,3.2078]
[1749732619717,0.73025,2738.3,2738.2,26.5668]
[1749732620014,0.73025,2738.3,2738.2,3.2078]
[1749732620212,0.73025,2738.3,2738.0,6.401]
[1749732620213,0.7303,2738.1,2738.0,6.401]
[1749732620510,0.73036,2737.9,2737.8,9.6088]
[1749732620710,2.46968,2738.4,2737.8,9.6088]
[1749732620711,1.82563,2738.3,2737.8,32.9668]
[1749732620906,1.2141,2738.3,2737.9,0.73036]
[1749732621107,0.73027,2738.3,2738.1,0.7303]
[1749732621412,0.6441,2738.4,2737.9,24.6126]
[1749732621612,0.7303,2738.1,2738.0,0.73032]
[1749732621809,0.73029,2738.2,2738.0,0.73032]
[1749732622213,0.73029,2738.2,2738.1,0.7303]
[1749732622713,0.7303,2738.2,2738.1,0.7303]
[1749732623810,0.73026,2738.3,2738.2,0.73025]
[1749732624208,0.7303,2738.2,2738.1,0.73029]
[1749732625413,0.73032,2738.1,2738.0,0.73031]
[1749732625614,0.73033,2738.0,2737.9,23.357]
[1749732625810,0.73034,2738.0,2737.9,24.08633]
[1749732628712,2.46968,2738.4,2737.9,23.356]
[1749732628906,0.73033,2738.1,2738.0,0.7303]
[1749732629708,0.73033,2738.1,2738.0,1.2349]
[1749732630115,0.73033,2738.1,2738.0,1.96523]
[1749732631517,0.73033,2738.1,2738.0,1.2349]
[1749732632711,0.73033,2738.1,2737.9,24.70525]
[1749732632712,0.73033,2738.0,2737.9,23.9689]
[1749732632917,0.73035,2737.9,2737.8,3.2078]
[1749732633119,0.73035,2737.9,2737.8,3.93818]
[1749732633619,0.73035,2737.9,2737.8,3.2078]
[1749732634918,0.73035,2737.9,2737.8,3.93818]
[1749732635124,0.73034,2738.1,2738.0,0.7303]
[1749732635530,0.73036,2738.0,2737.9,0.73034]
[1749732635826,0.73036,2738.0,2737.9,1.91814]
[1749732636017,0.73036,2738.0,2737.9,1.1878]
[1749732637417,0.73036,2738.0,2737.9,1.91816]
[1749732637936,0.73036,2738.0,2737.9,1.1878]
[1749732638225,1.16856,2738.0,2737.9,1.91816]
[1749732638429,1.16856,2738.0,2737.9,1.1878]
[1749732639926,0.73036,2737.9,2737.8,3.8004]
[1749732640615,0.73036,2737.9,2737.8,4.53078]
[1749732641020,0.73036,2737.9,2737.8,5.0929]
[1749732641428,0.73036,2737.9,2737.8,5.82328]
[1749732642229,0.73036,2737.9,2737.8,5.0929]
[1749732642728,0.73036,2737.9,2737.8,26.5468]
[1749732642929,1.33676,2737.9,2737.8,26.5468]
[1749732643928,1.33676,2737.9,2737.8,27.27718]
[1749732644329,1.33676,2737.9,2737.8,26.5468]
[1749732646122,1.33676,2737.9,2737.8,3.2078]
[1749732646326,0.73044,2737.6,2737.5,23.953]
[1749732646932,0.73044,2737.6,2737.5,23.952]
[1749732647128,0.73046,2737.5,2737.4,9.5888]
[1749732647326,0.73046,2737.5,2737.4,32.9218]
[1749732647926,0.73046,2737.5,2737.4,3.93829]
[1749732648131,0.73046,2737.5,2737.4,27.27029]
[1749732648328,1.82599,2737.8,2737.4,26.5398]
[1749732648638,0.73044,2737.7,2737.6,0.37427317]
[1749732648931,0.73044,2737.7,2737.6,23.70527317]
[1749732649128,0.73044,2737.7,2737.6,30.08727317]
[1749732650232,0.73044,2737.7,2737.6,0.37427317]
[1749732650528,0.34167181,2737.5,2737.4,26.5378]
[1749732650727,0.34167181,2737.5,2737.4,26.5368]
[1749732651128,0.34167181,2737.5,2737.4,28.53369]
[1749732651929,0.73045,2737.6,2737.5,0.73043]
[1749732652135,0.73043,2737.7,2737.6,0.7304]
[1749732652330,0.73043,2737.7,2737.6,24.6912]
[1749732653034,0.73043,2737.7,2737.6,23.9608]
[1749732653432,0.73043,2737.7,2737.6,24.69124]
[1749732654430,0.0620172,2737.9,2737.6,23.9608]
[1749732654630,0.7923772,2737.9,2737.8,0.73038]
[1749732654835,0.7923772,2737.9,2737.8,25.35728]
[1749732655233,0.0620172,2737.9,2737.8,25.35728]
[1749732655435,0.0620172,2737.9,2737.8,25.67938146]
[1749732655637,0.7923772,2737.9,2737.8,25.35728]
[1749732656038,0.5002172,2737.9,2737.8,25.67937965]
[1749732656235,0.10881954,2737.9,2737.8,30.67826206]
[1749732656437,0.10881954,2737.9,2737.8,35.42366778]
[1749732656642,0.73568156,2738.5,2738.4,0.73022]
[1749732656939,0.00547156,2738.5,2738.4,24.10253402]
[1749732657440,0.00547156,2738.5,2738.4,30.28863402]
[1749732658239,0.00547156,2738.5,2738.4,71.08863402]
[1749732659246,0.00547156,2738.5,2738.4,76.1665597]
[1749732659740,0.00547156,2738.5,2738.4,71.08863402]
[1749732659937,0.00547156,2738.5,2738.4,71.73373402]
[1749732663041,0.00547156,2738.5,2738.4,49.74242]
[1749732663238,0.00547156,2738.5,2738.4,73.15304804]
[1749732663538,0.73566156,2738.5,2738.4,49.84304804]
[1749732663743,0.73566156,2738.5,2738.4,71.23372804]
[1749732664143,0.73566156,2738.5,2738.4,6.48162804]
[1749732664343,0.73566156,2738.5,2738.4,0.10062804]
[1749732665038,5.73566156,2738.5,2738.4,0.10062804]
[1749732667341,0.73566156,2738.5,2738.4,0.10062804]
[1749732668639,0.57930794,2738.3,2738.2,26.5128]
[1749732669840,1.22970794,2738.3,2738.2,27.24307]
[1749732670243,0.57930794,2738.3,2738.2,27.24307]
[1749732670544,0.57930794,2738.3,2738.2,27.7583]
[1749732670947,0.57930794,2738.3,2738.2,28.48857]
[1749732673748,0.57930794,2738.3,2738.2,27.7583]
[1749732674145,0.63217071,2738.3,2738.2,27.7583]
[1749732674947,0.57930794,2738.3,2738.2,27.7583]
[1749732675748,0.57930794,2738.3,2738.2,26.5078]
[1749732676047,0.57930794,2738.3,2738.2,3.2078]
[1749732676249,0.57930794,2738.3,2738.2,26.4998]
[1749732677247,0.57930794,2738.3,2738.2,3.2078]
[1749732677850,0.57930794,2738.3,2738.2,26.4988]
[1749732679055,0.57930794,2738.3,2738.2,27.22908]
[1749732679352,0.73569156,2738.5,2738.4,0.73022]
[1749732679547,0.00547156,2738.5,2738.4,24.02122]
[1749732680051,0.73566156,2738.5,2738.4,24.02122]
[1749732680252,0.73566156,2738.5,2738.4,64.82122]
[1749732680552,0.73566156,2738.5,2738.4,40.8]
[1749732680754,0.73566156,2738.5,2738.4,64.088]
[1749732681051,0.73566156,2738.5,2738.4,64.13576527]
[1749732681446,0.73566156,2738.5,2738.4,64.86598527]
[1749732681647,0.73566156,2738.5,2738.4,40.84776527]
[1749732681941,0.73566156,2738.5,2738.4,64.13276527]
[1749732682846,0.73566156,2738.5,2738.4,64.86298527]
[1749732683252,0.00547156,2738.5,2738.4,64.86298527]
[1749732684058,0.73567156,2738.5,2738.4,65.45308527]
[1749732684760,0.73567156,2738.5,2738.4,64.72286527]
[1749732685157,0.73567156,2738.5,2738.4,64.13276527]